[Event "34th MPL National U12G Chess-ch 2022"]
[Site "Mysore"]
[Date "2022.04.11"]
[Round "5.6"]
[White "Arshiya Das"]
[Black "Rudra Rajeev"]
[Result "0-1"]
[ECO "C68"]
[WhiteElo "1407"]
[BlackElo "1141"]
[Annotator "NA RC"]
[PlyCount "132"]
[EventDate "2022.04.09"]
[EventCountry "IND"]
[SourceTitle "playchess.com"]
[Source "ChessBase"]
[SourceQuality "1"]
[TimeControl "5400+30"]

1. e4 {[%emt 0:00:03]} e5 {[%emt 0:00:16]} 2. Nf3 {[%emt 0:00:05]} Nc6 {[%emt 0:00:25]} 3. Bb5 {[%emt 0:00:05]} a6 {[%emt 0:00:35]} 4. Bxc6 {[%emt 0:00:06]} dxc6 {[%emt 0:00:25]} 5. O-O {[%emt 0:00:07]} Bg4 {[%emt 0:00:32]} 6. h3 {[%emt 0:00:07]} h5 {[%emt 0:00:37]} 7. d3 {[%emt 0:00:13]} Qf6 {[%emt 0:00:45]} 8. Nbd2 {[%emt 0:00:07]} Ne7 {[%emt 0:00:47]} 9. Nc4 {[%emt 0:00:10]} Ng6 {[%emt 0:01:06]} 10. hxg4 {[%emt 0:03:59]} hxg4 {[%emt 0:02:23]} 11. Bg5 {[%emt 0:00:32]} Qe6 {[%emt 0:02:33]} 12. Nh2 {[%emt 0:01:13]} b5 {[%emt 0:06:13]} 13. Nd2 {[%emt 0:06:59]} g3 {[%emt 0:01:12]} 14. Ng4 {[%emt 0:02:19]} Bc5 {[%emt 0:04:01]} 15. Be3 {[%emt 0:03:00]} Bxe3 {[%emt 0:01:18]} 16. Nxe3 {[%emt 0:00:50]} gxf2+ {[%emt 0:00:25]} 17. Rxf2 {[%emt 0:00:23]} Nf4 {[%emt 0:00:16]} 18. Nf5 {[%emt 0:01:24]} O-O-O {[%emt 0:01:21]} 19. Qg4 {[%emt 0:03:28]} Kb8 {[%emt 0:00:34]} 20. Nf3 {[%emt 0:00:30]} f6 {[%emt 0:04:37]} 21. Rff1 {[%emt 0:05:19]} Rh7 {[%emt 0:08:59]} 22. g3 {[%emt 0:02:24]} Nh3+ {[%emt 0:01:06]} 23. Kg2 {[%emt 0:00:21]} Rdh8 {[%emt 0:00:36]} 24. Rh1 {[%emt 0:01:12]} Nf2 {[%emt 0:01:56]} 25. Rxh7 {[%emt 0:01:20]} Nxg4 {[%emt 0:00:07]} 26. Rxh8+ {[%emt 0:00:06]} Kb7 {[%emt 0:00:22]} 27. Nxg7 {[%emt 0:01:04]} Qe7 {[%emt 0:00:52]} 28. Nf5 {[%emt 0:05:25]} Qc5 {[%emt 0:00:27]} 29. Ne1 {[%emt 0:09:53]} Qf2+ {[%emt 0:01:31]} 30. Kh3 {[%emt 0:00:03]} Qh2+ {[%emt 0:00:12]} 31. Kxg4 {[%emt 0:00:03]} Qxh8 {[%emt 0:00:09]} 32. Nf3 {[%emt 0:00:04]} c5 {[%emt 0:01:03]} 33. N3h4 {[%emt 0:01:13]} c4 {[%emt 0:01:15]} 34. Rf1 {[%emt 0:00:39]} cxd3 {[%emt 0:00:19]} 35. cxd3 {[%emt 0:00:04]} Qg8+ {[%emt 0:00:15]} 36. Kh3 {[%emt 0:00:39]} Qxa2 {[%emt 0:00:28]} 37. Ne3 {[%emt 0:00:19]} Qxb2 {[%emt 0:00:55]} 38. Rxf6 {[%emt 0:00:23]} a5 {[%emt 0:00:32]} 39. g4 {[%emt 0:00:46]} Qe2 {[%emt 0:00:55]} 40. Nhg2 {[%emt 0:03:01]} a4 {[%emt 0:00:18]} 41. Rf1 {[%emt 0:01:45]} a3 {[%emt 0:00:13]} 42. Ra1 {[%emt 0:00:18]} b4 {[%emt 0:00:33]} 43. Nc4 {[%emt 0:02:41]} Qxd3+ {[%emt 0:00:34]} 44. Nge3 {[%emt 0:00:03]} Qxe4 {[%emt 0:00:56]} 45. g5 {[%emt 0:00:37]} Qf4 {[%emt 0:00:51]} 46. Rg1 {[%emt 0:00:14]} a2 {[%emt 0:00:31]} 47. Na5+ {[%emt 0:00:34]} Ka6 {[%emt 0:00:30]} 48. Nac4 {[%emt 0:01:05]} Qf3+ {[%emt 0:00:45]} 49. Rg3 {[%emt 0:00:30]} Qxg3+ {[%emt 0:00:18]} 50. Kxg3 {[%emt 0:00:06]} a1=Q {[%emt 0:00:07]} 51. Kg4 {[%emt 0:00:08]} Qg1+ {[%emt 0:00:13]} 52. Kf5 {[%emt 0:00:08]} b3 {[%emt 0:00:12]} 53. g6 {[%emt 0:00:12]} b2 {[%emt 0:01:06]} 54. Nxb2 {[%emt 0:00:03]} Qxe3 {[%emt 0:00:08]} 55. g7 {[%emt 0:00:09]} Qf2+ {[%emt 0:00:08]} 56. Kg5 {[%emt 0:00:40]} Qxb2 {[%emt 0:00:07]} 57. g8=Q {[%emt 0:00:11]} Qg2+ {[%emt 0:00:10]} 58. Kf6 {[%emt 0:00:07]} Qxg8 {[%emt 0:00:05]} 59. Kxe5 {[%emt 0:00:02]} Kb5 {[%emt 0:00:17]} 60. Ke4 {[%emt 0:00:04]} Qf7 {[%emt 0:00:23]} 61. Kd3 {[%emt 0:00:28]} Qf4 {[%emt 0:00:35]} 62. Kc3 {[%emt 0:00:08]} Qe4 {[%emt 0:00:10]} 63. Kb2 {[%emt 0:00:03]} Kb4 {[%emt 0:00:05]} 64. Ka2 {[%emt 0:00:02]} Kc3 {[%emt 0:00:29]} 65. Ka1 {[%emt 0:00:03]} Qe2 {[%emt 1:00:56]} 66. Kb1 {[%emt 0:00:03]} Qb2# {[%emt 0:00:00]} 0-1

[Event "34th MPL National U12G Chess-ch 2022"]
[Site "Mysore"]
[Date "2022.04.11"]
[Round "6.1"]
[White "Kalyani Sirin"]
[Black "Shriyana S Mallya"]
[Result "0-1"]
[ECO "C54"]
[WhiteElo "1243"]
[BlackElo "1277"]
[Annotator "NA RC"]
[PlyCount "168"]
[EventDate "2022.04.09"]
[EventCountry "IND"]
[SourceTitle "playchess.com"]
[Source "ChessBase"]
[SourceQuality "1"]
[TimeControl "5400+30"]

1. e4 {[%emt 0:00:04]} e5 {[%emt 0:00:14]} 2. Nf3 {[%emt 0:00:05]} Nc6 {[%emt 0:00:33]} 3. Bc4 {[%emt 0:00:08]} Bc5 {[%emt 0:00:48]} 4. c3 {[%emt 0:00:11]} Nf6 {[%emt 0:00:37]} 5. d3 {[%emt 0:00:18]} h6 {[%emt 0:02:42]} 6. Nbd2 {[%emt 0:00:47]} d6 {[%emt 0:01:19]} 7. a4 {[%emt 0:01:28]} a5 {[%emt 0:01:25]} 8. Nf1 {[%emt 0:01:59]} Ne7 {[%emt 0:11:40]} 9. Ng3 {[%emt 0:03:01]} Ng6 {[%emt 0:02:34]} 10. O-O {[%emt 0:00:36]} O-O {[%emt 0:01:11]} 11. h3 {[%emt 0:00:54]} c6 {[%emt 0:12:28]} 12. Be3 {[%emt 0:12:01]} Ba7 {[%emt 0:01:52]} 13. Bxa7 {[%emt 0:03:05]} Rxa7 {[%emt 0:01:17]} 14. d4 {[%emt 0:00:36]} Qe7 {[%emt 0:01:49]} 15. Re1 {[%emt 0:02:50]} Qc7 {[%emt 0:05:07]} 16. Qc2 {[%emt 0:01:42]} Be6 {[%emt 0:04:53]} 17. Bxe6 {[%emt 0:03:14]} fxe6 {[%emt 0:00:10]} 18. dxe5 {[%emt 0:00:15]} dxe5 {[%emt 0:00:52]} 19. Qb3 {[%emt 0:03:22]} Nf4 {[%emt 0:01:27]} 20. Rad1 {[%emt 0:05:35]} Raa8 {[%emt 0:01:46]} 21. Rd2 {[%emt 0:04:25]} Nd7 {[%emt 0:09:56]} 22. Red1 {[%emt 0:02:32]} Rad8 {[%emt 0:02:35]} 23. Kh2 {[%emt 0:02:52]} Kh7 {[%emt 0:00:42]} 24. Qa3 {[%emt 0:05:55]} c5 {[%emt 0:02:27]} 25. Qb3 {[%emt 0:00:37]} b6 {[%emt 0:08:15]} 26. Qb5 {[%emt 0:01:37]} Nf6 {[%emt 0:04:33]} 27. b4 {[%emt 0:13:05]} Rxd2 {[%emt 0:04:50]} 28. Rxd2 {[%emt 0:00:25]} Rf7 {[%emt 0:02:49]} 29. bxa5 {[%emt 0:03:51]} bxa5 {[%emt 0:00:08]} 30. Rb2 {[%emt 0:01:00]} Nd7 {[%emt 0:06:26]} 31. Qb7 {[%emt 0:00:45]} Qd6 {[%emt 0:02:02]} 32. Rd2 {[%emt 0:04:17]} Qb6 {[%emt 0:03:43]} 33. Qc8 {[%emt 0:00:59]} Qa7 {[%emt 0:01:35]} 34. Rd6 {[%emt 0:01:42]} Nb6 {[%emt 0:00:50]} 35. Qc6 {[%emt 0:01:22]} Nc4 {[%emt 0:00:51]} 36. Rd8 {[%emt 0:01:31]} Qe7 {[%emt 0:00:49]} 37. Qa8 {[%emt 0:00:37]} Kg6 {[%emt 0:00:50]} 38. Rh8 {[%emt 0:02:53]} Kf6 {[%emt 0:00:31]} 39. Qa6 {[%emt 0:01:03]} Nb2 {[%emt 0:00:27]} 40. Qxa5 {[%emt 0:03:21]} Nd1 {[%emt 0:00:15]} 41. Kg1 {[%emt 0:08:13]} Qc7 {[%emt 0:00:58]} 42. Ra8 {[%emt 0:04:46]} Qxa5 {[%emt 0:00:19]} 43. Rxa5 {[%emt 0:00:08]} Nxc3 {[%emt 0:00:08]} 44. Rxc5 {[%emt 0:00:46]} Nxa4 {[%emt 0:00:30]} 45. Rxe5 {[%emt 0:00:21]} Rc7 {[%emt 0:00:30]} 46. Ra5 {[%emt 0:00:45]} Rc1+ {[%emt 0:00:16]} 47. Kh2 {[%emt 0:00:13]} Nc5 {[%emt 0:00:45]} 48. Ra2 {[%emt 0:01:25]} Ncd3 {[%emt 0:00:32]} 49. Rd2 {[%emt 0:00:38]} g5 {[%emt 0:00:44]} 50. Nh5+ {[%emt 0:00:33]} Nxh5 {[%emt 0:00:18]} 51. Rxd3 {[%emt 0:00:01]} Nf4 {[%emt 0:00:04]} 52. Rd2 {[%emt 0:00:17]} Rc4 {[%emt 0:00:44]} 53. g3 {[%emt 0:00:50]} Ng6 {[%emt 0:00:18]} 54. Re2 {[%emt 0:00:16]} e5 {[%emt 0:00:31]} 55. Nd2 {[%emt 0:00:37]} Rc2 {[%emt 0:00:07]} 56. Kg2 {[%emt 0:00:16]} Nf8 {[%emt 0:00:17]} 57. Kf1 {[%emt 0:00:24]} Ne6 {[%emt 0:00:36]} 58. Nf3 {[%emt 0:00:18]} Rc1+ {[%emt 0:00:46]} 59. Kg2 {[%emt 0:00:23]} Nc5 {[%emt 0:00:19]} 60. Nd2 {[%emt 0:01:08]} Rc2 {[%emt 0:00:16]} 61. Kf3 {[%emt 0:00:18]} Ne6 {[%emt 0:00:17]} 62. Nb3 {[%emt 0:00:22]} Rc3+ {[%emt 0:00:08]} 63. Re3 {[%emt 0:00:03]} Rxb3 {[%emt 0:00:06]} 64. Rxb3 {[%emt 0:00:15]} Nd4+ {[%emt 0:00:03]} 65. Ke3 {[%emt 0:00:10]} Nxb3 {[%emt 0:04:10]} 66. f4 {[%emt 0:00:06]} Nc5 {[%emt 0:00:00]} 67. Kf3 {[%emt 0:00:28]} Ne6 {[%emt 0:00:00]} 68. f5 {[%emt 0:01:05]} Nd4+ {[%emt 0:00:00]} 69. Kg4 {[%emt 0:00:21]} Ne2 {[%emt 0:00:51]} 70. h4 {[%emt 0:00:41]} Nc3 {[%emt 0:00:40]} 71. Kf3 {[%emt 0:00:40]} g4+ {[%emt 0:00:32]} 72. Ke3 {[%emt 0:00:11]} h5 {[%emt 0:00:33]} 73. Kd3 {[%emt 0:00:14]} Nb5 {[%emt 0:00:35]} 74. Kc4 {[%emt 0:00:25]} Nd4 {[%emt 0:00:04]} 75. Kd3 {[%emt 0:00:24]} Nxf5 {[%emt 0:00:20]} 76. exf5 {[%emt 0:00:16]} Kxf5 {[%emt 0:00:04]} 77. Ke3 {[%emt 0:00:13]} Ke6 {[%emt 0:00:56]} 78. Ke4 {[%emt 0:00:08]} Kd6 {[%emt 0:00:01]} 79. Kf5 {[%emt 0:00:36]} Kd5 {[%emt 0:00:05]} 80. Kg5 {[%emt 0:00:02]} e4 {[%emt 0:00:11]} 81. Kxh5 {[%emt 0:00:07]} e3 {[%emt 0:00:03]} 82. Kxg4 {[%emt 0:00:01]} e2 {[%emt 0:00:00]} 83. h5 {[%emt 0:00:14]} e1=Q {[%emt 0:04:05]} 84. h6 {[%emt 0:00:20]} Qe5 {[%emt 0:00:00]} 0-1

[Event "34th MPL National U12G Chess-ch 2022"]
[Site "Mysore"]
[Date "2022.04.11"]
[Round "6.2"]
[White "Vidula Anbuselvan"]
[Black "Prishita Gupta"]
[Result "0-1"]
[ECO "A06"]
[WhiteElo "1125"]
[BlackElo "1412"]
[Annotator "NA RC"]
[PlyCount "120"]
[EventDate "2022.04.09"]
[EventCountry "IND"]
[SourceTitle "playchess.com"]
[Source "ChessBase"]
[SourceQuality "1"]
[TimeControl "5400+30"]

1. Nf3 {[%emt 0:00:17]} d5 {[%emt 0:00:06]} 2. g3 {[%emt 0:00:08]} c5 {[%emt 0:00:05]} 3. b3 {[%emt 0:00:06]} Nf6 {[%emt 0:00:12]} 4. Bb2 {[%emt 0:00:03]} e6 {[%emt 0:00:16]} 5. Bg2 {[%emt 0:00:06]} Nc6 {[%emt 0:00:08]} 6. O-O {[%emt 0:00:32]} Be7 {[%emt 0:00:07]} 7. d3 {[%emt 0:00:04]} O-O {[%emt 0:00:07]} 8. Nbd2 {[%emt 0:00:10]} Qc7 {[%emt 0:00:17]} 9. a3 {[%emt 0:00:44]} Rd8 {[%emt 0:00:16]} 10. Ra2 {[%emt 0:00:41]} e5 {[%emt 0:00:59]} 11. Qa1 {[%emt 0:02:04]} e4 {[%emt 0:01:22]} 12. Ne5 {[%emt 0:01:46]} Bf5 {[%emt 0:01:50]} 13. Nxc6 {[%emt 0:02:49]} bxc6 {[%emt 0:00:17]} 14. Qc1 {[%emt 0:05:19]} Re8 {[%emt 0:02:48]} 15. Rd1 {[%emt 0:15:36]} Rad8 {[%emt 0:00:37]} 16. Nf1 {[%emt 0:02:39]} d4 {[%emt 0:00:58]} 17. c3 {[%emt 0:04:37]} Be6 {[%emt 0:00:55]} 18. c4 {[%emt 0:01:24]} exd3 {[%emt 0:00:29]} 19. exd3 {[%emt 0:01:56]} Bg4 {[%emt 0:00:26]} 20. f3 {[%emt 0:04:16]} Bf5 {[%emt 0:00:21]} 21. Ba1 {[%emt 0:01:56]} Qb8 {[%emt 0:00:54]} 22. Qb1 {[%emt 0:02:17]} Bd6 {[%emt 0:00:32]} 23. Kf2 {[%emt 0:02:10]} Re7 {[%emt 0:00:36]} 24. Rdd2 {[%emt 0:02:42]} Rde8 {[%emt 0:00:10]} 25. Re2 {[%emt 0:00:59]} Nd7 {[%emt 0:00:26]} 26. Rxe7 {[%emt 0:01:31]} Rxe7 {[%emt 0:00:08]} 27. Rd2 {[%emt 0:12:05]} Ne5 {[%emt 0:00:34]} 28. Qd1 {[%emt 0:01:02]} Bc7 {[%emt 0:00:27]} 29. f4 {[%emt 0:01:25]} Ng4+ {[%emt 0:00:24]} 30. Kg1 {[%emt 0:00:18]} Ne3 {[%emt 1:28:43]} 31. Qe1 {[%emt 0:04:25]} Qe8 {[%emt 0:00:00]} 32. Re2 {[%emt 0:03:49]} Bxd3 {[%emt 0:00:00]} 33. Rxe3 {[%emt 0:00:37]} dxe3 {[%emt 0:00:00]} 34. Qc3 {[%emt 0:00:19]} f6 {[%emt 0:00:00]} 35. Qxd3 {[%emt 0:00:33]} e2 {[%emt 0:00:00]} 36. Bc3 {[%emt 0:00:13]} exf1=Q+ {[%emt 0:00:00]} 37. Bxf1 {[%emt 0:00:42]} Rd7 {[%emt 0:03:30]} 38. Qf3 {[%emt 0:00:33]} Rd6 {[%emt 0:00:00]} 39. b4 {[%emt 0:00:13]} cxb4 {[%emt 0:00:00]} 40. Bxb4 {[%emt 0:00:10]} Re6 {[%emt 0:00:00]} 41. c5 {[%emt 0:00:14]} Kh8 {[%emt 0:00:00]} 42. Kf2 {[%emt 0:00:17]} a5 {[%emt 0:00:00]} 43. Bc3 {[%emt 0:00:17]} Qe7 {[%emt 0:00:00]} 44. Bd4 {[%emt 0:00:53]} Bb8 {[%emt 0:00:00]} 45. Bd3 {[%emt 0:02:20]} Qd8 {[%emt 0:00:00]} 46. Bc3 {[%emt 0:01:00]} Ba7 {[%emt 0:00:00]} 47. Qg4 {[%emt 0:03:03]} Bxc5+ {[%emt 0:00:00]} 48. Kg2 {[%emt 0:00:14]} Qd5+ {[%emt 0:00:00]} 49. Qf3 {[%emt 0:01:22]} Qxf3+ {[%emt 0:00:00]} 50. Kxf3 {[%emt 0:00:01]} Re3+ {[%emt 0:00:00]} 51. Kg4 {[%emt 0:00:16]} Rxd3 {[%emt 0:00:00]} 52. Bxa5 {[%emt 0:00:04]} Rxa3 {[%emt 0:00:00]} 53. Be1 {[%emt 0:00:16]} Ra2 {[%emt 0:00:00]} 54. h3 {[%emt 0:00:17]} Re2 {[%emt 0:00:00]} 55. Bc3 {[%emt 0:00:08]} Bf2 {[%emt 0:00:00]} 56. Kf3 {[%emt 0:00:20]} Re3+ {[%emt 0:00:00]} 57. Kxf2 {[%emt 0:00:02]} Rxc3 {[%emt 0:00:00]} 58. h4 {[%emt 0:00:03]} c5 {[%emt 0:00:00]} 59. g4 {[%emt 0:00:01]} c4 {[%emt 0:00:00]} 60. Ke2 {[%emt 0:00:02]} Rd3 {[%emt 0:00:00]} 0-1

[Event "34th MPL National U12G Chess-ch 2022"]
[Site "Mysore"]
[Date "2022.04.11"]
[Round "6.3"]
[White "Aadya Gupta"]
[Black "Aadhya Jain"]
[Result "0-1"]
[ECO "A84"]
[WhiteElo "1218"]
[BlackElo "1128"]
[Annotator "NA RC"]
[PlyCount "68"]
[EventDate "2022.04.09"]
[EventCountry "IND"]
[SourceTitle "playchess.com"]
[Source "ChessBase"]
[SourceQuality "1"]
[TimeControl "5400+30"]

1. d4 {[%emt 0:00:08]} d5 {[%emt 0:00:07]} 2. c4 {[%emt 0:00:03]} e6 {[%emt 0:00:05]} 3. Nf3 {[%emt 0:00:04]} f5 {[%emt 0:00:05]} 4. cxd5 {[%emt 0:00:05]} exd5 {[%emt 0:00:05]} 5. Nc3 {[%emt 0:00:04]} Nf6 {[%emt 0:00:25]} 6. Bg5 {[%emt 0:00:03]} Be7 {[%emt 0:00:48]} 7. e3 {[%emt 0:00:04]} c6 {[%emt 0:01:00]} 8. Bd3 {[%emt 0:00:03]} O-O {[%emt 0:00:10]} 9. O-O {[%emt 0:00:06]} Ne4 {[%emt 0:00:24]} 10. Bxe7 {[%emt 0:00:09]} Qxe7 {[%emt 0:00:10]} 11. Ne5 {[%emt 0:00:03]} Nd7 {[%emt 0:00:53]} 12. f4 {[%emt 0:00:12]} Nxe5 {[%emt 0:01:22]} 13. fxe5 {[%emt 0:00:20]} Qg5 {[%emt 0:01:10]} 14. Rf4 {[%emt 0:00:55]} Be6 {[%emt 0:00:36]} 15. Qe2 {[%emt 0:01:43]} Rae8 {[%emt 0:05:41]} 16. Raf1 {[%emt 0:00:52]} Qh6 {[%emt 0:00:44]} 17. Bxe4 {[%emt 0:00:36]} dxe4 {[%emt 0:02:01]} 18. b4 {[%emt 0:03:17]} Rc8 {[%emt 0:06:25]} 19. Qb2 {[%emt 0:04:01]} Bc4 {[%emt 0:01:42]} 20. Re1 {[%emt 0:04:55]} b5 {[%emt 0:03:44]} 21. a4 {[%emt 0:01:36]} a6 {[%emt 0:00:47]} 22. a5 {[%emt 0:00:57]} Qe6 {[%emt 0:06:59]} 23. Ne2 {[%emt 0:02:34]} Kh8 {[%emt 0:08:30]} 24. Ng3 {[%emt 0:00:19]} Rf7 {[%emt 0:00:59]} 25. h4 {[%emt 0:05:33]} g6 {[%emt 0:05:54]} 26. Qf2 {[%emt 0:00:11]} Rcf8 {[%emt 0:00:16]} 27. Ne2 {[%emt 0:00:40]} Qe7 {[%emt 0:00:36]} 28. Rb1 {[%emt 0:00:49]} h6 {[%emt 0:00:32]} 29. Qe1 {[%emt 0:02:13]} g5 {[%emt 0:52:50]} 30. Rf2 {[%emt 0:03:14]} f4 {[%emt 0:00:00]} 31. hxg5 {[%emt 0:02:34]} hxg5 {[%emt 0:00:00]} 32. exf4 {[%emt 0:00:32]} gxf4 {[%emt 0:00:00]} 33. Nc3 {[%emt 0:01:48]} Qh4 {[%emt 0:00:00]} 34. Rd2 {[%emt 0:01:26]} Qxe1+ {[%emt 0:00:00]} 0-1

[Event "34th MPL National U12G Chess-ch 2022"]
[Site "Mysore"]
[Date "2022.04.11"]
[Round "6.4"]
[White "Krupha S Ukkali"]
[Black "Shubhi Gupta"]
[Result "0-1"]
[ECO "C50"]
[WhiteElo "1223"]
[BlackElo "1434"]
[Annotator "NA RC"]
[PlyCount "66"]
[EventDate "2022.04.09"]
[EventCountry "IND"]
[SourceTitle "playchess.com"]
[Source "ChessBase"]
[SourceQuality "1"]
[TimeControl "5400+30"]

1. e4 {[%emt 0:00:11]} e5 {[%emt 0:00:34]} 2. Nf3 {[%emt 0:00:47]} Nc6 {[%emt 0:00:48]} 3. Bc4 {[%emt 0:01:15]} Bc5 {[%emt 0:01:04]} 4. O-O {[%emt 0:01:14]} d6 {[%emt 0:01:00]} 5. c3 {[%emt 0:05:40]} Nf6 {[%emt 0:02:50]} 6. d4 {[%emt 0:01:56]} Bb6 {[%emt 0:02:08]} 7. Re1 {[%emt 0:06:04]} O-O {[%emt 0:03:15]} 8. Bg5 {[%emt 0:02:40]} h6 {[%emt 0:05:39]} 9. Bh4 {[%emt 0:02:28]} exd4 {[%emt 0:04:53]} 10. cxd4 {[%emt 0:07:58]} Bg4 {[%emt 0:04:39]} 11. d5 {[%emt 0:03:58]} Ne5 {[%emt 1:09:10]} 12. Be2 {[%emt 0:03:06]} Ng6 13. Bxf6 {[%emt 0:05:31]} Qxf6 {[%emt 0:00:00]} 14. Nc3 {[%emt 0:01:30]} Nf4 {[%emt 0:00:00]} 15. Rc1 {[%emt 0:05:30]} Qg6 {[%emt 0:00:00]} 16. Nh4 {[%emt 0:07:09]} Nxe2+ {[%emt 0:00:00]} 17. Nxe2 {[%emt 0:00:59]} Qh5 {[%emt 0:00:00]} 18. g3 {[%emt 0:06:59]} Ba5 {[%emt 0:00:00]} 19. f3 {[%emt 0:07:37]} Bxf3 {[%emt 0:00:00]} 20. Nxf3 {[%emt 0:00:36]} Qxf3 {[%emt 0:00:00]} 21. Nd4 {[%emt 0:01:00]} Qf6 {[%emt 0:00:00]} 22. Rf1 {[%emt 0:01:32]} Qe5 {[%emt 0:00:00]} 23. Qd3 {[%emt 0:02:49]} Bb6 {[%emt 0:00:00]} 24. Rcd1 {[%emt 0:01:16]} Rae8 {[%emt 0:00:00]} 25. Rfe1 {[%emt 0:01:41]} f5 {[%emt 0:00:00]} 26. Kg2 {[%emt 0:11:31]} fxe4 {[%emt 0:00:00]} 27. Qc4 {[%emt 0:04:17]} e3 {[%emt 0:00:00]} 28. Re2 {[%emt 0:01:49]} Qe4+ {[%emt 0:00:00]} 29. Kg1 {[%emt 0:02:08]} Qg4 {[%emt 0:00:00]} 30. b3 {[%emt 0:03:37]} Rf2 {[%emt 0:00:00]} 31. Rde1 {[%emt 0:00:38]} Qxd4 {[%emt 0:00:00]} 32. Qc2 {[%emt 0:00:32]} Qxd5 {[%emt 0:00:00]} 33. Qg6 {[%emt 0:00:23]} Qg2# {[%emt 0:00:00]} 0-1

[Event "34th MPL National U12G Chess-ch 2022"]
[Site "Mysore"]
[Date "2022.04.11"]
[Round "6.5"]
[White "Shreya G Hipparagi"]
[Black "Theephigaa K P"]
[Result "1-0"]
[ECO "C54"]
[WhiteElo "1552"]
[BlackElo "1086"]
[Annotator "NA RC"]
[PlyCount "77"]
[EventDate "2022.04.09"]
[EventCountry "IND"]
[SourceTitle "playchess.com"]
[Source "ChessBase"]
[SourceQuality "1"]
[TimeControl "5400+30"]

1. e4 {[%emt 0:00:03]} e5 {[%emt 0:00:08]} 2. Nf3 {[%emt 0:00:18]} Nc6 {[%emt 0:00:09]} 3. Bc4 {[%emt 0:00:08]} Nf6 {[%emt 0:00:19]} 4. d3 {[%emt 0:03:57]} Bc5 {[%emt 0:00:18]} 5. c3 {[%emt 0:00:40]} d6 {[%emt 0:00:15]} 6. Nbd2 {[%emt 0:02:48]} a6 {[%emt 0:18:40]} 7. Bb3 {[%emt 0:04:01]} O-O {[%emt 0:08:22]} 8. h3 {[%emt 0:04:11]} h6 {[%emt 0:03:54]} 9. Nf1 {[%emt 0:02:25]} Re8 {[%emt 0:01:43]} 10. Be3 {[%emt 0:01:54]} Bxe3 {[%emt 0:04:14]} 11. Nxe3 {[%emt 0:01:59]} Be6 {[%emt 0:02:00]} 12. Bc2 {[%emt 0:09:08]} d5 {[%emt 0:05:37]} 13. Qe2 {[%emt 0:09:02]} Qe7 {[%emt 0:13:34]} 14. O-O {[%emt 0:03:21]} Rad8 {[%emt 0:09:49]} 15. Nh4 {[%emt 0:03:07]} Kh8 {[%emt 0:08:56]} 16. Nhf5 {[%emt 0:03:59]} Bxf5 {[%emt 0:01:08]} 17. Nxf5 {[%emt 0:00:29]} Qd7 {[%emt 0:01:54]} 18. Rad1 {[%emt 0:02:36]} d4 {[%emt 0:02:21]} 19. Qf3 {[%emt 0:01:38]} Ne7 {[%emt 0:05:28]} 20. Nxh6 {[%emt 0:03:18]} Ng6 {[%emt 0:05:33]} 21. Bb3 {[%emt 0:03:29]} Rf8 {[%emt 0:01:42]} 22. cxd4 {[%emt 0:01:05]} exd4 {[%emt 0:00:11]} 23. Nf5 {[%emt 0:00:24]} a5 {[%emt 0:01:45]} 24. h4 {[%emt 0:02:05]} a4 {[%emt 0:00:57]} 25. Bc2 {[%emt 0:00:40]} Rg8 {[%emt 0:01:51]} 26. h5 {[%emt 0:00:52]} Ne5 {[%emt 0:01:05]} 27. Qf4 {[%emt 0:00:34]} Neg4 {[%emt 0:01:27]} 28. e5 {[%emt 0:04:57]} Nxh5 {[%emt 0:00:37]} 29. Qxg4 {[%emt 0:00:16]} g6 {[%emt 0:00:14]} 30. Nh6 {[%emt 0:00:12]} Qc6 {[%emt 0:00:44]} 31. Nxf7+ {[%emt 0:00:31]} Kg7 {[%emt 0:00:20]} 32. Nxd8 {[%emt 0:00:08]} Rxd8 {[%emt 0:00:28]} 33. Rc1 {[%emt 0:00:11]} Rf8 {[%emt 0:00:25]} 34. f4 {[%emt 0:00:43]} Rf5 {[%emt 0:00:32]} 35. Bb3 {[%emt 0:00:44]} Qb6 {[%emt 0:00:27]} 36. Bd5 {[%emt 0:00:19]} c5 {[%emt 0:00:51]} 37. Be4 {[%emt 0:00:07]} Rf7 {[%emt 0:00:16]} 38. f5 {[%emt 0:00:13]} Qxb2 {[%emt 0:00:45]} 39. fxg6 {[%emt 0:00:15]} 1-0